bitfinex-derivatives/quotes_ETHF0:USTF0_20250501
["timestamp","ask_amount","ask_price","bid_price","bid_amount"]
[1746117718425,2.67199,1865.9,1865.8,5.98001]
[1746117718625,2.67199,1865.9,1865.8,2.77221]
[1746117718626,1.6005,1865.9,1865.8,2.77221]
[1746117719423,1.6005,1865.9,1865.8,5.98001]
[1746117719726,1.6005,1865.9,1865.8,7.58891]
[1746117720020,1.6005,1865.9,1865.8,4.38111]
[1746117720220,2.67199,1865.9,1865.8,7.58891]
[1746117720427,1.6005,1865.9,1865.8,7.58891]
[1746117721429,2.67199,1865.9,1865.8,7.58891]
[1746117721613,1.6005,1865.9,1865.8,7.58891]
[1746117722327,2.67199,1865.9,1865.8,7.58891]
[1746117723126,2.67199,1865.9,1865.8,4.27931]
[1746117724727,2.67199,1865.9,1865.8,3.2078]
[1746117725426,1.07155,1865.8,1865.7,10.21137]
[1746117725619,3.53145,1865.8,1865.7,10.21137]
[1746117726024,3.53145,1865.8,1865.7,9.1398]
[1746117726215,3.53145,1865.8,1865.7,10.2114]
[1746117726624,3.53145,1865.8,1865.7,4.2794]
[1746117727424,3.53145,1865.8,1865.7,3.2078]
[1746117727826,3.53145,1865.8,1865.7,4.2794]
[1746117728127,3.56918545,1866.4,1866.3,1.07126]
[1746117728336,8.68806671,1866.5,1866.4,1.0712]
[1746117728520,7.11656671,1866.5,1866.4,1.9175]
[1746117728726,7.11656671,1866.5,1866.4,3.5401]
[1746117730132,8.18770671,1866.5,1866.4,3.5401]
[1746117730933,7.11656671,1866.5,1866.4,3.5401]
[1746117731225,7.11656671,1866.5,1866.4,8.5401]
[1746117732333,7.11656671,1866.5,1866.4,3.5401]
[1746117732738,1.07105,1866.7,1866.4,3.5401]
[1746117732739,1.5863,1866.9,1866.4,7.4689]
[1746117732930,1.07093,1866.9,1866.8,1.07097]
[1746117733231,1.0709,1867.0,1866.9,1.07088]
[1746117733435,1.0709,1867.0,1866.9,4.61788]
[1746117733829,1.0709,1867.0,1866.9,6.28988]
[1746117734035,2.65715,1867.1,1867.0,1.07086]
[1746117734230,3.56793372,1867.2,1867.1,1.0708]
[1746117734431,4.63867372,1867.2,1867.1,4.2786]
[1746117734631,3.56793372,1867.2,1867.1,4.2786]
[1746117736537,2.65577,1867.4,1867.3,1.07069]
[1746117737231,1.5851,1867.4,1867.3,1.07069]
[1746117737433,2.65573,1867.4,1867.3,1.07069]
[1746117738533,2.65573,1867.4,1867.2,5.9176]
[1746117738534,1.07069,1867.3,1867.2,6.98832]
[1746117738734,2.79409,1867.3,1867.2,6.98832]
[1746117739133,1.07074,1867.2,1867.1,3.2078]
[1746117739336,1.0708,1867.1,1867.0,4.61685]
[1746117739838,1.07091,1866.9,1866.8,1.85827]
[1746117740037,1.6634,1867.0,1866.9,4.61691]
[1746117740340,1.6634,1867.0,1866.9,6.32311]
[1746117740544,2.73426,1867.0,1866.9,6.32311]
[1746117740931,2.73426,1867.0,1866.9,3.546]
[1746117741838,2.73426,1867.0,1866.7,3.2078]
[1746117741839,1.07097,1866.8,1866.7,3.2078]
[1746117742141,2.67738,1866.9,1866.6,1.07107]
[1746117742335,1.6634,1866.7,1866.6,1.07107]
[1746117742843,2.73443,1866.7,1866.6,1.07107]
[1746117744939,2.73443,1866.7,1866.6,2.66997]
[1746117745345,2.73443,1866.7,1866.6,1.07107]
[1746117746146,2.73443,1866.7,1866.6,2.75197]
[1746117746445,1.07109,1866.6,1866.5,7.82292]
[1746117746746,2.67199,1866.6,1866.5,7.82292]
[1746117747545,2.67199,1866.6,1866.5,7.82294]
[1746117749945,1.6009,1866.6,1866.5,7.82294]
[1746117750339,1.07108,1866.7,1866.6,1.07109]
[1746117750538,1.07108,1866.7,1866.6,2.77679]
[1746117750951,2.74278,1866.7,1866.6,2.77679]
[1746117752050,2.74278,1866.7,1866.6,1.07109]
[1746117752254,2.74278,1866.7,1866.5,8.6785]
[1746117752255,1.07109,1866.6,1866.5,8.6785]
[1746117752446,1.07109,1866.6,1866.5,6.7518]
[1746117752447,3.49529,1866.6,1866.5,6.7518]
[1746117752642,3.49529,1866.6,1866.5,7.82294]
[1746117753049,1.0712,1866.4,1866.3,5.13464]
[1746117753349,1.0712,1866.4,1866.3,4.61524]
[1746117753744,2.7025,1866.4,1866.3,4.61524]
[1746117756045,1.6313,1866.4,1866.3,7.82304]
[1746117756250,2.7025,1866.4,1866.3,8.66914]
[1746117756446,2.7025,1866.4,1866.3,5.46134]
[1746117757056,1.0712,1866.4,1866.3,5.46134]
[1746117757653,1.0712,1866.4,1866.3,8.66914]
[1746117757952,2.5274,1866.5,1866.4,1.0712]
[1746117757953,1.07117,1866.5,1866.4,1.0712]
[1746117758152,1.07117,1866.5,1866.4,2.6844]
[1746117760150,2.72657,1866.5,1866.4,2.6844]
[1746117763851,2.72657,1866.5,1866.4,1.6132]
[1746117764152,1.0712,1866.4,1866.3,5.12514]
[1746117764351,2.6879,1866.4,1866.3,5.12514]
[1746117764554,1.6167,1866.4,1866.3,6.77854]
[1746117764854,1.07119,1866.5,1866.4,1.0712]
[1746117765055,1.07119,1866.5,1866.4,2.7246]
[1746117766257,2.68789,1866.5,1866.4,1.0712]
[1746117769656,2.68789,1866.5,1866.3,5.7073]
[1746117769657,1.0712,1866.4,1866.3,6.77853]
[1746117769860,2.64,1866.4,1866.3,5.12513]
[1746117773859,2.64,1866.4,1866.3,4.0539]
[1746117774058,2.64,1866.4,1866.3,0.8461]
[1746117774260,1.07126,1866.3,1866.2,5.2165]
[1746117774556,1.07132,1866.2,1866.1,4.5464]
[1746117774748,1.91742,1866.2,1866.1,5.20777]
[1746117774950,3.52772,1866.2,1866.1,5.20777]
[1746117775249,3.52772,1866.2,1866.1,5.06777]
[1746117775448,3.52772,1866.2,1866.1,1.85997]
[1746117776465,3.52772,1866.2,1866.0,3.543]
[1746117776466,1.07137,1866.1,1866.0,3.543]
[1746117776764,1.07143,1866.0,1865.9,5.06784]
[1746117776963,1.07143,1866.0,1865.9,1.86004]
[1746117777260,1.07143,1866.0,1865.9,6.73354]
[1746117780167,2.67532,1866.1,1866.0,1.07143]
[1746117780365,2.67532,1866.1,1866.0,2.64323]
[1746117782471,1.07143,1866.0,1865.9,5.06788]
[1746117782673,2.75843,1866.0,1865.9,5.06788]
[1746117783269,2.75843,1866.0,1865.9,6.70098]
[1746117783769,1.07141,1866.1,1866.0,1.07143]
[1746117783971,1.07141,1866.1,1866.0,2.70453]
[1746117784169,3.60446,1866.2,1866.1,1.07137]
[1746117784468,1.07113,1866.6,1866.5,1.07109]
[1746117784677,2.75813,1866.6,1866.5,1.07109]
[1746117784869,2.75813,1866.6,1866.5,4.27889]
[1746117785170,2.75813,1866.6,1866.5,6.70619]
[1746117785482,1.07113,1866.6,1866.5,6.70619]
[1746117785976,1.07113,1866.6,1866.5,3.49839]
[1746117786277,1.07113,1866.6,1866.5,6.70619]
[1746117786571,3.56793372,1866.7,1866.6,1.07109]
[1746117786778,3.56793372,1866.7,1866.6,2.76899]
[1746117787875,2.72508,1866.8,1866.7,1.07103]
[1746117788076,2.72508,1866.8,1866.7,9.51973]
[1746117788276,2.72508,1866.8,1866.7,6.31193]
[1746117788576,2.72508,1866.8,1866.7,3.543]
[1746117789476,1.07114,1866.5,1866.4,4.0145]
[1746117789672,1.07114,1866.5,1866.4,6.7508]
[1746117790482,1.07114,1866.5,1866.4,7.822]
[1746117792582,1.6274,1866.6,1866.5,1.07114]
[1746117792774,1.6274,1866.6,1866.5,3.57404]
[1746117792975,2.69849,1866.6,1866.5,3.57404]
[1746117793279,2.69849,1866.6,1866.5,1.93814]
[1746117793681,1.07114,1866.5,1866.4,9.45785]
[1746117793880,2.73454,1866.5,1866.4,9.45785]
[1746117794181,1.6634,1866.5,1866.4,9.45785]
[1746117794382,2.73454,1866.5,1866.4,9.45785]
[1746117795182,1.6634,1866.5,1866.4,9.45785]
[1746117795482,2.75782,1866.8,1866.7,1.07103]
[1746117796283,2.75782,1866.8,1866.7,2.73573]
[1746117796483,2.75782,1866.8,1866.7,6.27873]
[1746117796683,4.63884372,1867.0,1866.9,1.07091]
[1746117796880,5.25473372,1867.0,1866.9,1.07091]
[1746117797089,3.56793372,1867.0,1866.9,1.07091]
[1746117797382,3.56793372,1867.0,1866.9,3.54321]
[1746117797887,4.63879372,1867.0,1866.9,4.37151]
[1746117798283,6.32329372,1867.0,1866.9,4.37151]
[1746117798881,1.07091,1866.9,1866.8,4.27874]
[1746117799083,2.75541,1866.9,1866.8,3.2078]
[1746117799287,3.62241,1866.9,1866.8,1.07097]
[1746117801383,3.62241,1866.9,1866.8,3.50037]
[1746117801573,3.62241,1866.9,1866.8,1.87407]
[1746117801775,3.62241,1866.9,1866.8,5.08187]
[1746117802184,2.75541,1866.9,1866.8,5.08187]
[1746117802386,1.07086,1867.0,1866.9,1.07086]
[1746117802880,2.64886,1867.0,1866.9,1.07086]
[1746117803778,1.85826,1867.2,1867.1,1.0708]
[1746117804085,2.78863,1867.3,1867.2,1.07074]
[1746117805381,1.7179,1867.3,1867.1,2.4172]
[1746117805584,2.78864,1867.2,1867.1,1.90987]
[1746117806389,2.78864,1867.2,1867.1,1.07077]
[1746117806782,1.0708,1867.1,1867.0,13.75162]
[1746117807091,3.4896,1867.1,1867.0,9.473]
[1746117807788,6.6974,1867.1,1867.0,9.473]
[1746117808190,6.6974,1867.1,1867.0,5.932]
[1746117808579,1.07086,1867.0,1866.9,1.07091]
[1746117808890,3.51346,1867.0,1866.9,1.07091]
[1746117809290,1.07091,1866.9,1866.8,4.61095]
[1746117809589,2.66381,1866.9,1866.8,4.61095]
[1746117810286,2.66381,1866.9,1866.8,3.54]
[1746117810590,2.66381,1866.9,1866.8,4.61097]
[1746117811990,1.5929,1866.9,1866.8,4.61097]
[1746117812192,1.5929,1866.9,1866.8,6.28867]
[1746117812692,2.66381,1866.9,1866.8,6.28867]
[1746117812993,0.8259,1867.1,1866.9,1.07086]
[1746117813195,3.5179,1867.1,1867.0,1.6956]
[1746117814790,0.8194,1867.3,1867.1,1.07074]
[1746117815090,1.0708,1867.2,1867.1,1.07074]
[1746117815293,2.692,1867.2,1867.1,1.07074]
[1746117815596,2.692,1867.2,1867.1,6.30634]
[1746117816186,2.692,1867.2,1867.1,3.54]
[1746117816894,2.692,1867.2,1867.1,4.6108]
[1746117820996,1.6212,1867.2,1867.1,4.6108]
[1746117821198,1.8901,1867.3,1867.2,1.07074]
[1746117821387,1.8901,1867.3,1867.2,3.61354]
[1746117821589,3.5658,1867.3,1867.2,3.61354]
[1746117821902,1.0707,1867.3,1867.2,3.61354]
[1746117822199,1.07067,1867.4,1867.3,1.07063]
[1746117822387,2.73547,1867.4,1867.3,2.64903]
[1746117823597,1.6648,1867.4,1867.3,2.64903]
[1746117823898,1.6648,1867.4,1867.3,5.85683]
[1746117824199,0.7872,1867.7,1867.6,1.07051]
[1746117824406,2.73524,1867.8,1867.7,1.07046]
[1746117824791,2.01096807,1867.8,1867.7,2.64886]
[1746117824996,2.01096807,1867.8,1867.7,3.44736]
[1746117824997,0.34616807,1867.8,1867.7,3.44736]
[1746117825197,0.34616807,1867.8,1867.7,6.65516]
[1746117825496,4.42993372,1867.9,1867.8,0.68489932]
[1746117825696,3.56793372,1867.9,1867.8,2.30799932]
[1746117826593,5.27173372,1867.9,1867.8,2.30799932]
[1746117826789,6.34207372,1867.9,1867.8,2.30799932]
[1746117827202,5.30600366,1867.9,1867.8,2.30799932]
[1746117827404,6.37634366,1867.9,1867.8,2.30799932]
[1746117829108,2.80840994,1867.9,1867.8,2.30799932]
[1746117829509,0.03426994,1867.9,1867.8,2.30799932]
[1746117830507,1.10460994,1867.9,1867.8,2.30799932]
[1746117831114,0.03426994,1867.9,1867.8,2.30799932]
[1746117831314,1.10460994,1867.9,1867.8,2.30799932]
[1746117831708,0.03426994,1867.9,1867.8,2.30799932]
[1746117832612,1.10460994,1867.9,1867.8,2.30799932]
[1746117833411,0.03426994,1867.9,1867.8,2.30799932]
[1746117834128,1.10460994,1867.9,1867.8,2.30799932]
[1746117835423,1.10460994,1867.9,1867.8,3.12239932]
[1746117836026,2.81300994,1867.9,1867.8,3.12239932]
[1746117836228,2.81300994,1867.9,1867.8,0.68489932]
[1746117838116,1.74266994,1867.9,1867.6,3.94972544]
[1746117838316,3.2078,1867.7,1867.4,4.6066]
[1746117838530,3.60576,1867.6,1867.5,1.07057]
[1746117839230,3.64002994,1867.6,1867.5,1.07057]
[1746117839624,2.56946994,1867.6,1867.5,1.07057]
[1746117839924,3.63997994,1867.6,1867.5,3.55787]
[1746117840329,3.63997994,1867.6,1867.5,6.76567]
[1746117840832,0.03426994,1867.6,1867.5,6.76567]
[1746117842425,0.03426994,1867.6,1867.5,7.15846941]
[1746117843525,1.07034,1868.0,1867.6,1.07051]
[1746117843718,1.85774,1868.0,1867.9,1.07029]
[1746117843923,0.7874,1868.0,1867.9,1.07029]
[1746117844123,1.86093,1868.1,1868.0,1.07028]
[1746117844331,1.86093,1868.1,1868.0,4.60628]
[1746117844930,0.7907,1868.1,1868.0,4.60628]
[1746117845134,2.4525,1868.1,1868.0,4.60628]
[1746117845325,3.52273,1868.1,1868.0,4.60628]
[1746117845529,2.4525,1868.1,1868.0,4.60628]
[1746117845929,3.52273,1868.1,1868.0,4.60628]
[1746117846327,1.6618,1868.1,1868.0,4.60628]
[1746117846628,0.8191,1868.2,1868.1,1.07023]
[1746117846819,1.7022,1868.3,1868.2,1.07017]
[1746117847222,1.7022,1868.3,1868.2,2.78887]
[1746117848033,4.38703372,1868.4,1868.3,1.07011]
[1746117848228,6.08923372,1868.4,1868.3,6.32481]
[1746117848422,3.56793372,1868.7,1868.3,13.4625]
[1746117848626,1e-08,1868.8,1868.7,1.06988]
[1746117848834,1.62226095,1868.9,1868.8,1.06983]
[1746117849032,0.38338095,1868.9,1868.8,4.27763]
[1746117849229,0.38338095,1868.9,1868.8,15.53233]
[1746117849931,12.38269974,1869.5,1869.4,1.06948]
[1746117850233,12.38269974,1869.5,1869.4,4.27728]
[1746117850733,12.38269974,1869.5,1869.4,7.81228]
[1746117851121,14.15165685,1869.6,1869.4,4.27728]
[1746117851326,17.68957106,1869.7,1869.6,1.06926]
[1746117851521,19.45852817,1870.4,1870.3,1.06886]
[1746117851728,19.45852817,1870.4,1870.3,5.60386]
[1746117852030,20.99941763,1870.4,1870.3,10.60386]
[1746117852228,20.99941763,1870.4,1870.3,11.30396]
[1746117853032,20.99941763,1870.4,1870.3,6.30396]
[1746117853231,24.43528527,1871.0,1870.4,2.67201]
[1746117853528,24.43528527,1871.0,1870.3,11.30396]
[1746117853529,4.8929,1871.2,1870.6,3.2078]
[1746117853731,1.6851,1870.9,1870.5,1.6705]
[1746117853930,1.06866,1870.7,1870.5,1.6705]
[1746117854131,1.6851,1870.6,1870.5,1.6705]
[1746117854537,1.6851,1870.6,1870.4,3.2078]
[1746117854835,1.6851,1870.6,1870.4,4.2766]
[1746117855034,1.6851,1870.6,1870.4,4.8783]
[1746117855429,2.75379,1870.6,1870.4,4.8783]
[1746117855934,1.6851,1870.6,1870.4,4.8783]
[1746117856138,2.75379,1870.6,1870.4,4.8783]
[1746117856435,1.6851,1870.6,1870.5,1.06875]
[1746117856636,1.06859,1870.8,1870.5,2.66025]
[1746117856836,1.06869,1870.6,1870.4,3.2078]
[1746117857036,1.06881,1870.4,1870.2,3.2078]
[1746117857335,3.2078,1870.7,1870.2,3.2078]
[1746117857528,1.6995,1870.7,1870.4,3.2078]
[1746117857938,1.06869,1870.6,1870.4,4.27656]
[1746117858236,2.76825,1870.5,1870.4,4.27656]
[1746117858439,2.76825,1870.5,1870.4,3.2078]
[1746117858739,1.06886,1870.3,1870.2,6.7408]
[1746117858938,1.06883,1870.4,1870.2,7.80972]
[1746117859237,1.6822,1870.3,1870.2,7.80972]
[1746117859939,3.4944,1871.0,1870.5,1.06872]
[1746117860139,1.6822,1870.6,1870.4,3.2078]
[1746117860339,1.06875,1870.5,1870.4,3.2078]
[1746117860533,1.06875,1870.5,1870.4,4.2766]
[1746117860738,2.75092,1870.6,1870.5,1.06875]
[1746117860939,2.75092,1870.6,1870.4,1.06878]
[1746117860940,1.06875,1870.5,1870.4,1.06878]
[1746117861238,2.75095,1870.5,1870.4,4.27658]
[1746117861638,2.75095,1870.5,1870.4,3.2078]
[1746117861842,1.6822,1870.5,1870.4,4.2766]
[1746117863030,2.75095,1870.5,1870.4,4.2766]
[1746117863738,2.75095,1870.5,1870.4,3.2078]
[1746117864338,2.67161,1870.7,1870.4,3.2078]
[1746117864535,2.67143,1870.9,1870.4,3.2078]
[1746117864834,1.06874,1870.6,1870.5,1.7016]
[1746117865040,1.06875,1870.5,1870.4,3.2078]
[1746117866038,1.06886,1870.3,1870.2,6.7398]
[1746117866244,1.06886,1870.3,1870.2,7.80872]
[1746117866746,1.06886,1870.3,1870.2,6.7398]
[1746117866944,0.45824198,1870.5,1870.2,6.7398]
[1746117867142,1.06886,1870.3,1870.2,3.2078]
[1746117869141,1.06886,1870.3,1869.9,3.613]
[1746117869142,2.6724,1870.2,1869.9,3.613]
[1746117869336,1.06903,1870.0,1869.9,3.613]
[1746117869645,1.06926,1869.6,1869.5,3.2078]
[1746117870142,1.06926,1869.6,1869.5,4.27712]
[1746117876247,1.06926,1869.6,1869.5,3.2078]
[1746117876653,1.06926,1869.6,1869.5,4.27712]
[1746117876956,1.06926,1869.6,1869.5,5.88192]
[1746117877142,1.06925,1869.7,1869.6,1.06921]
[1746117877642,1.06926,1869.6,1869.5,5.88187]
[1746117878256,1.06926,1869.6,1869.5,4.8126]
[1746117878547,1.06924,1869.7,1869.6,1.06922]
[1746117878753,1.06924,1869.7,1869.6,1.6048]
[1746117879050,1.06926,1869.6,1869.5,3.2078]
[1746117879254,1.06937,1869.4,1869.3,3.2078]
[1746117879552,1.06937,1869.4,1869.2,1.6048]
[1746117879553,1.06943,1869.3,1869.2,1.6048]
[1746117881753,1.06943,1869.3,1869.2,2.67429]
[1746117882651,1.06937,1869.5,1869.4,1.06933]
[1746117882855,1.06937,1869.5,1869.4,3.2078]
[1746117883252,1.06937,1869.5,1869.4,4.8191]
[1746117883650,1.06937,1869.5,1869.4,1.6113]
[1746117885058,1.06955,1869.1,1869.0,1.0]
[1746117885247,1.0696,1869.0,1868.9,4.8191]
[1746117885446,1.0696,1869.0,1868.9,1.6113]
[1746117885849,2.7973,1869.0,1868.9,1.6113]
[1746117886648,2.7973,1869.0,1868.9,4.8191]
[1746117886855,2.7973,1869.0,1868.9,1.6113]
[1746117887051,1.6263,1869.4,1868.9,7.49324]
[1746117887265,2.67302,1869.7,1869.1,5.88154]
[1746117887460,1.06942,1869.4,1869.3,1.0694]
[1746117888367,1.06943,1869.3,1869.2,5.718]
[1746117888963,1.06943,1869.3,1869.2,4.8919]
[1746117889882,1.06942,1869.4,1869.3,1.06941]
[1746117890074,0.8441,1869.5,1869.2,4.8919]
[1746117890273,1.733,1869.6,1869.2,4.8919]
[1746117890572,1.0694,1869.4,1869.3,1.06943]
[1746117892472,1.06943,1869.3,1869.2,5.96136]
[1746117893873,1.06941,1869.4,1869.3,1.06938]
[1746117894078,1.06928,1869.7,1869.6,1.06923]
[1746117894275,1.06928,1869.7,1869.6,4.27703]
[1746117894773,1.06932,1869.6,1869.5,4.27709]
[1746117894971,1.06932,1869.6,1869.5,5.94149]
[1746117896074,1.06932,1869.6,1869.5,1.6644]
[1746117896471,1.06937,1869.4,1869.3,18.84722985]
[1746117896673,1.06936,1869.5,1869.4,1.06932]
[1746117899777,1.06937,1869.4,1869.3,10.20921]
[1746117900278,1.06937,1869.4,1869.3,9.1398]
[1746117900466,1.06937,1869.4,1869.3,5.932]
[1746117901475,1.06937,1869.4,1869.1,3.2078]
[1746117901476,1.06949,1869.2,1869.1,3.2078]
[1746117902178,1.06955,1869.1,1869.0,7.04002985]
[1746117902374,2.64305,1869.1,1869.0,7.04002985]
[1746117902574,1.0696,1869.0,1868.9,10.48717589]
[1746117902776,2.6431,1869.0,1868.9,10.48717589]
[1746117905578,5.8509,1869.0,1868.9,10.48717589]
[1746117905877,10.85690685,1869.0,1868.9,9.30211589]
[1746117906181,10.85690685,1869.0,1868.7,15.29674185]
[1746117906182,1.06972,1868.8,1868.7,1.10069]
[1746117907575,3.42962,1868.8,1868.7,1.10069]
[1746117907775,1.06983,1868.6,1868.5,3.2078]
[1746117908075,1.06995,1868.4,1868.3,3.2078]
[1746117909480,1.07,1868.3,1868.2,5.932]
[1746117909680,1.07,1868.3,1868.2,7.6026]
[1746117909876,1.07006,1868.2,1868.1,9.30211589]
[1746117910076,1.07006,1868.2,1868.1,12.50991589]
[1746117910277,1.07006,1868.2,1868.1,9.30211589]
[1746117910778,1.07006,1868.2,1868.1,12.50991589]
[1746117911080,1.07006,1868.2,1868.1,9.30211589]
[1746117911377,1.07012,1868.1,1868.0,1.7211]
[1746117912978,1.07029,1867.8,1867.7,6.7348]
[1746117913980,5.20824,1868.0,1867.6,3.2078]
[1746117913981,1.07035,1867.7,1867.6,3.2078]
[1746117914979,1.07035,1867.7,1867.6,4.27821]
[1746117915185,1.07035,1867.7,1867.6,3.2078]
[1746117916479,1.07035,1867.7,1867.6,4.27821]
[1746117916786,1.07032,1867.8,1867.7,1.07029]
[1746117916982,1.07032,1867.8,1867.7,2.67699]
[1746117917887,1.07025,1867.9,1867.8,1.07023]
[1746117918180,1.07029,1867.8,1867.7,2.67703]
[1746117918688,1.07028,1867.9,1867.8,1.07024]
[1746117918878,1.07028,1867.9,1867.8,4.27804]
[1746117919986,1.07028,1867.9,1867.8,5.12344]
[1746117920286,1.07022,1868.0,1867.9,1.07018]
[1746117923085,1.07023,1867.9,1867.8,11.87996]
[1746117925587,1.07023,1867.9,1867.8,9.9852]
[1746117925783,1.07023,1867.9,1867.8,11.05549]
[1746117927488,1.07023,1867.9,1867.8,5.932]
[1746117928077,1.07035,1867.7,1867.6,3.2078]
[1746117928282,1.07068,1867.2,1867.1,3.2078]
[1746117929192,1.07069,1867.1,1867.0,0.55]
[1746117929988,1.07068,1867.2,1867.0,0.55]
[1746117930189,1.07069,1867.1,1867.0,4.8285]
[1746117930390,1.07068,1867.2,1867.1,1.07069]
[1746117930994,1.07069,1867.1,1867.0,4.82853]
[1746117931593,1.07069,1867.1,1867.0,4.97853]
[1746117931998,1.07068,1867.2,1867.1,1.07069]
[1746117932194,2.67631,1867.4,1867.0,4.9785]
[1746117932195,1.07069,1867.1,1867.0,4.9785]
[1746117932490,1.07068,1867.2,1867.1,1.07069]
[1746117932693,1.07048,1867.5,1867.4,1.07049]
[1746117932998,3.3386,1867.6,1867.3,3.2078]
[1746117933293,1.07051,1867.5,1867.4,1.07052]
[1746117933498,2.67558,1868.0,1867.4,9.543]
[1746117933499,2.67545,1868.0,1867.4,9.543]
[1746117933796,1.07036,1867.7,1867.6,4.27818]
[1746117933996,1.07034,1867.8,1867.7,1.07035]
[1746117934404,1.6819,1868.1,1867.7,2.67587]
[1746117934697,1.07022,1868.0,1867.9,1.07023]
[1746117934885,1.0702,1868.0,1867.9,1.07019]
[1746117935084,1.0702,1868.0,1867.8,3.2078]
[1746117935085,5.10505,1868.3,1867.8,3.2078]
[1746117935294,1.07016,1868.1,1868.0,1.07016]
[1746117935493,1.07016,1868.1,1868.0,3.2078]
[1746117935690,1.07016,1868.1,1868.0,4.27798]
[1746117935895,1.07019,1868.0,1867.9,1.07019]
[1746117936697,1.07023,1867.9,1867.8,3.2078]
[1746117937799,1.07023,1867.9,1867.8,4.27809]
[1746117938599,1.07023,1867.9,1867.8,3.2078]
[1746117938900,2.67554,1868.0,1867.6,3.2078]
[1746117939095,1.07035,1867.7,1867.6,4.8784]
[1746117939497,2.79505,1867.7,1867.6,4.8784]
[1746117942199,2.79505,1867.7,1867.6,3.2078]
[1746117942395,1.07052,1867.4,1867.3,9.47123]
[1746117942599,1.07052,1867.4,1867.3,7.88933]
[1746117943299,1.07041,1867.7,1867.6,1.07037]
[1746117943498,9.31024,1868.1,1867.6,2.67602]
[1746117943701,1.07018,1868.0,1867.9,3.2078]
[1746117943899,2.69248,1868.0,1867.9,3.2078]
[1746117944095,4.29777,1868.0,1867.7,3.2078]
[1746117944400,1.07029,1867.8,1867.7,4.27807]
[1746117950602,1.07029,1867.8,1867.7,3.2078]
[1746117950802,1.07035,1867.7,1867.6,10.61339]
[1746117951101,1.07035,1867.7,1867.6,5.932]
[1746117951102,2.72115,1867.7,1867.6,5.932]
[1746117952702,2.72115,1867.7,1867.6,9.1398]
[1746117953498,2.72115,1867.7,1867.6,5.932]
[1746117953903,2.72115,1867.7,1867.6,9.1398]
[1746117955406,2.72115,1867.7,1867.6,3.2078]
[1746117958000,1.07058,1867.4,1867.3,4.27833]
[1746117958312,1.07058,1867.4,1867.3,3.2078]
[1746117959208,1.07058,1867.4,1867.3,4.8752]
[1746117960707,1.07058,1867.4,1867.3,5.94578]
[1746117962707,1.07058,1867.4,1867.3,4.8752]
[1746117964409,1.07058,1867.4,1867.3,5.94578]
[1746117965999,1.07046,1867.5,1867.4,1.07046]
[1746117966205,1.07046,1867.5,1867.4,3.54916]
[1746117967205,1.07046,1867.5,1867.4,1.6354]
[1746117968313,1.07052,1867.4,1867.3,3.2078]
[1746117968607,1.07063,1867.2,1867.1,15.68300297]
[1746117969111,1.07057,1867.4,1867.3,1.07052]
[1746117969312,1.07057,1867.4,1867.3,4.27832]
[1746117971103,3.52,1867.7,1867.3,5.88417]
[1746117971414,1.07052,1867.5,1867.4,2.76118]
[1746117972217,1.07052,1867.5,1867.4,1.6907]
[1746117972407,1.07052,1867.5,1867.4,2.76122]
[1746117972602,1.07052,1867.5,1867.4,1.6907]
[1746117974206,1.07052,1867.5,1867.4,2.76122]
[1746117975920,1.07052,1867.5,1867.4,1.6907]
[1746117979116,1.07063,1867.2,1867.1,19.28097297]
[1746117980117,1.07052,1867.5,1867.4,1.07046]
[1746117980623,1.07052,1867.5,1867.4,3.49046]
[1746117981023,1.07052,1867.5,1867.4,2.42]
[1746117981615,1.07052,1867.5,1867.4,1.5904]
[1746117982020,1.07052,1867.4,1867.3,3.2078]
[1746117982227,1.07052,1867.4,1867.3,4.859]
[1746117982926,1.07052,1867.4,1867.3,5.92958]
[1746117983326,1.07049,1867.5,1867.4,1.07046]
[1746117983628,1.07049,1867.5,1867.4,2.72166]
[1746117985326,1.07022,1868.0,1867.9,1.07018]
[1746117985724,1.07022,1868.0,1867.9,4.27798]
[1746117985926,1.07018,1868.1,1868.0,1.07015]
[1746117986126,1.07012,1868.1,1868.0,2.4081]
[1746117987333,1.07012,1868.1,1868.0,3.47828]
[1746117988624,3.2078,1868.6,1868.0,2.4081]
[1746117988832,1.06995,1868.5,1868.4,4.27773]
[1746117989629,1.06995,1868.5,1868.4,3.2078]
[1746117990426,1.06995,1868.5,1868.4,4.8859]
[1746117991128,1.06995,1868.5,1868.4,5.95585]
[1746117991325,1.06995,1868.5,1868.4,4.8859]
[1746117991526,1.06987,1868.6,1868.5,1.06985]
[1746117991726,1.06987,1868.6,1868.5,3.60925]
[1746117992121,1.06987,1868.6,1868.5,2.5394]
[1746117992628,1.06987,1868.6,1868.5,3.60929]
[1746117992837,1.06982,1868.7,1868.6,1.0698]
[1746117993026,1.06982,1868.7,1868.6,4.864]
[1746117995836,1.06982,1868.7,1868.6,1.6562]
[1746117996333,1.06995,1868.4,1868.3,8.63408]
[1746117997630,1.06995,1868.4,1868.3,10.36548]
[1746117998134,1.06995,1868.4,1868.3,10.3655]
[1746117998528,1.06995,1868.4,1868.3,9.2955]
[1746117999730,1.06995,1868.4,1868.3,8.5002]
[1746117999925,1.07006,1868.2,1868.1,10.20989]
[1746118000934,1.07006,1868.2,1868.1,9.1398]
[1746118001140,1.07006,1868.2,1868.1,11.89712]
[1746118001439,1.90656,1868.2,1868.1,11.89712]
[1746118001839,1.90656,1868.2,1868.1,10.827]
[1746118002140,1.90656,1868.2,1868.1,11.89712]